fUST/lending_fUST_20251019
["ID","MTS","AMOUNT","RATE_DAILY","PERIOD"]
[391801088,1760848239888,-50000.0,0.00024624,2]
[391801089,1760848239897,-860.54250136,0.00025,2]
[391801090,1760848239907,-1190.0,0.00025,10]
[391801091,1760848239916,-150.0,0.00025,2]
[391801092,1760848239926,-186.05955477,0.00025068,15]
[391801093,1760848239935,-172.5,0.000256,2]
[391801094,1760848239944,-4493.3977457,0.00025692,2]
[391801095,1760848239953,-906.55,0.00025981,2]
[391801096,1760848239962,-192.82660619,0.0002616,2]
[391801097,1760848239971,-420.0,0.00026176,2]
[391801098,1760848239980,-195.0,0.000262,2]
[391801099,1760848239990,-1572.0,0.00026295,2]
[391801100,1760848240001,-160.0,0.000264,2]
[391801101,1760848240011,-1200.0,0.00026574,2]
[391801102,1760848240020,-187.340252,0.00026676,2]
[391801103,1760848240029,-217.5,0.000268,2]
[391801104,1760848240039,-260.0,0.00026948,2]
[391801105,1760848240048,-720.0,0.00027086,30]
[391801106,1760848240057,-7816.87686989,0.00027279,2]
[391801107,1760848240066,-151.0,0.00027279,7]
[391801108,1760848240076,-154.710884,0.00027279,7]
[391801109,1760848240085,-500.0,0.00027379,2]
[391801110,1760848240094,-152.594033,0.00027379,7]
[391801111,1760848240104,-151.0,0.00027379,7]
[391801112,1760848240113,-151.0,0.00027379,7]
[391801113,1760848240123,-151.0,0.00027379,7]
[391801114,1760848240132,-186.813862,0.00027379,7]
[391801115,1760848240141,-186.813862,0.00027379,7]
[391801116,1760848240150,-186.813862,0.00027379,7]
[391801117,1760848240159,-186.813862,0.00027379,7]
[391801118,1760848240168,-151.0,0.00027379,7]
[391801119,1760848240178,-151.0,0.00027379,7]
[391801120,1760848240187,-240.0,0.000274,2]
[391801121,1760848240195,-360.0,0.00027496,2]
[391801122,1760848240206,-2609.09003543,0.000275,2]
[391801123,1760848240215,-500.0,0.00027653,2]
[391801124,1760848240224,-1133.19,0.00027837,2]
[391801125,1760848240234,-500.0,0.00027927,2]
[391801126,1760848240243,-7816.87686989,0.00027934,2]
[391801127,1760848240252,-501.29038884,0.00027973,5]
[391801128,1760848240262,-501.76071803,0.00027973,5]
[391801129,1760848240271,-500.51955316,0.00027973,5]
[391801130,1760848240280,-500.0,0.00027973,3]
[391801131,1760848240289,-500.0,0.00027973,2]
[391801132,1760848240300,-500.0,0.00027973,5]
[391801133,1760848240309,-500.0,0.00027973,5]
[391801134,1760848240320,-500.0,0.00027973,2]
[391801135,1760848240330,-500.0,0.00027973,5]
[391801136,1760848240340,-150.0,0.00027973,5]
[391801137,1760848240350,-300.05860498,0.00027973,5]
[391801138,1760848240359,-503.02716062,0.00027973,5]
[391801139,1760848240369,-501.70868136,0.00027973,5]
[391801140,1760848240378,-506.51852112,0.00027973,5]
[391801141,1760848240387,-502.16610855,0.00027973,5]
[391801142,1760848240396,-501.66049947,0.00027973,5]
[391801143,1760848240406,-502.04508194,0.00027973,5]
[391801144,1760848240415,-151.0,0.00027973,30]
[391801145,1760848240425,-186.813862,0.00027973,30]
[391801146,1760848240435,-186.813862,0.00027973,30]
[391801147,1760848240445,-186.813862,0.00027973,30]
[391801148,1760848240455,-186.813862,0.00027973,30]
[391801149,1760848240465,-741.31,0.0002798,3]
[391801150,1760848240474,-988.37,0.00027986,3]
[391801151,1760848240484,-494.18,0.00027986,3]
[391801152,1760848240493,-247.09,0.00027986,3]
[391801153,1760848240503,-50799.709238,0.0002799,2]
[391801154,1760848240513,-4321.07692238,0.0002799,2]
[391801155,1760848240522,-100000.0,0.0002799,2]
[391801156,1760848240532,-151.0,0.0002799,30]
[391801157,1760848240541,-186.813862,0.0002799,30]
[391801158,1760848240550,-186.813862,0.0002799,30]
[391801159,1760848240559,-186.813862,0.0002799,30]
[391801160,1760848240569,-186.813862,0.0002799,30]
[391801161,1760848240578,-151.0,0.00027996,30]
[391801162,1760848240587,-186.813862,0.00027996,30]
[391801163,1760848240596,-186.813862,0.00027996,30]
[391801164,1760848240607,-186.813862,0.00027996,30]
[391801165,1760848240616,-186.813862,0.00027996,30]
[391801166,1760848240627,-323.29977552,0.00027999,2]
[391801167,1760848240637,-323.29977552,0.00027999,2]
[391801168,1760848240648,-290.72870799,0.00027999,2]
[391801169,1760848240657,-290.72870799,0.00027999,2]
[391801170,1760848240666,-9000.0,0.00028,2]
[391801171,1760848240676,-10335.64712944,0.00028,5]
[391801172,1760848240685,-11109.08117851,0.00028,4]
[391801173,1760848240695,-219.03092184,0.00028,2]
[391801174,1760848240704,-14298.97,0.00028,7]
[391801175,1760848240714,-186.813862,0.00028,30]
[391801176,1760848240723,-186.813862,0.00028,30]
[391801177,1760848240733,-186.813862,0.00028,30]
[391801178,1760848240743,-186.813863,0.00028,30]
[391801179,1760848240752,-262.5,0.00028,2]
[391801180,1760848240762,-153.44693552,0.00028034,2]
[391801181,1760848240772,-460.0,0.00028044,2]
[391801182,1760848240782,-389.65603357,0.00028079,2]
[391801183,1760848240792,-422.0,0.00028079,2]
[391801184,1760848240801,-152.48678728,0.00028079,2]
[391801185,1760848240811,-300.39733726,0.0002811,5]
[391801186,1760848240820,-422.0,0.00028134,2]
[391801187,1760848240829,-290.72870799,0.00028167,4]
[391801188,1760848240843,-290.72870799,0.00028167,4]
[391801189,1760848240853,-290.72870799,0.00028167,4]
[391801190,1760848240863,-290.72870799,0.00028167,4]
[391801191,1760848240875,-422.0,0.00028189,2]
[391801192,1760848240885,-356.0,0.00028189,2]
[391801193,1760848240895,-500.0,0.00028201,2]
[391801194,1760848240904,-422.0,0.00028243,2]
[391801195,1760848240917,-422.0,0.00028298,2]
[391801196,1760848240926,-323.29977552,0.00028336,6]
[391801197,1760848240936,-323.29977552,0.00028336,6]
[391801198,1760848240946,-290.72870799,0.00028336,6]
[391801199,1760848240957,-290.72870799,0.00028336,6]
[391801200,1760848240966,-422.0,0.00028353,2]
[391801201,1760848240976,-587.0,0.00028382,2]
[391801202,1760848241089,-26234.29197185,0.00028404,2]
[391801203,1760848241100,-422.0,0.00028408,2]
[391801204,1760848241112,-422.0,0.00028463,2]
[391801205,1760848241124,-529.98801342,0.00028475,2]
[391801206,1760848241135,-137187.59861725,0.000285,7]
[391801207,1760848241144,-449.0,0.00028502,2]
[391801208,1760848241157,-290.72870799,0.00028504,8]
[391801209,1760848241167,-290.72870799,0.00028504,8]
[391801210,1760848241176,-290.72870799,0.00028504,8]
[391801211,1760848241185,-422.0,0.00028517,2]
[391801212,1760848241195,-1000.0,0.00028521,2]
[391801213,1760848241204,-1000.0,0.00028521,5]
[391801214,1760848241214,-1000.0,0.00028521,5]
[391801215,1760848241223,-1000.0,0.00028521,2]
[391801216,1760848241232,-1000.0,0.00028521,5]
[391801217,1760848241242,-422.0,0.00028572,2]
[391801218,1760848241251,-7816.87686989,0.0002859,2]
[391801219,1760848241260,-560.0,0.00028592,2]
[391801220,1760848241270,-285.0,0.000286,2]
[391801221,1760848241279,-180.32028701,0.000286,2]
[391801222,1760848241288,-422.0,0.00028627,2]
[391801223,1760848241297,-290.72870799,0.00028673,10]
[391801224,1760848241307,-290.72870799,0.00028673,10]
[391801225,1760848241317,-290.72870799,0.00028673,10]
[391801226,1760848241326,-290.72870799,0.00028673,10]
[391801227,1760848241335,-422.0,0.00028682,2]
[391801228,1760848241345,-422.0,0.00028737,2]
[391801229,1760848241355,-988.87380341,0.0002876,2]
[391801230,1760848241364,-4000.0,0.0002876,5]
[391801231,1760848241373,-250.2559314,0.0002876,2]
[391801232,1760848241384,-2317.80058224,0.0002876,2]
[391801233,1760848241394,-160.0,0.00028766,2]
[391801234,1760848241403,-551.0,0.00028774,2]
[391801235,1760848241413,-422.0,0.00028791,2]
[391801236,1760848241423,-169.78919712,0.000288,7]
[391801237,1760848241432,-194.761,0.00028829,21]
[391801238,1760848241441,-422.0,0.00028846,2]
[391801239,1760848241450,-160.0,0.00028882,2]
[391801240,1760848241460,-422.0,0.00028901,2]
[391801241,1760848241470,-422.0,0.00028956,2]
[391801242,1760848241480,-881.76201205,0.00029,2]
[391801243,1760848241490,-502.31460324,0.00029,7]
[391801244,1760848241499,-323.29977552,0.00029009,14]
[391801245,1760848241509,-422.0,0.00029011,2]
[391801246,1760848241518,-173.33121897,0.00029043,120]
[391801247,1760848241527,-1123.83451013,0.00029044,120]
[391801248,1760848241538,-422.0,0.00029065,2]
[391801249,1760848241547,-272.60226287,0.00029068,2]
[391801250,1760848241557,-1500.0,0.00029068,5]
[391801251,1760848241566,-1500.0,0.00029068,5]
[391801252,1760848241576,-1392.52512553,0.00029068,2]
[391801253,1760848241585,-1500.0,0.00029068,5]
[391801254,1760848241595,-422.0,0.0002912,2]
[391801255,1760848241604,-660.0,0.0002914,2]
[391801256,1760848241614,-422.0,0.00029175,2]
[391801257,1760848241623,-307.5,0.000292,2]
[391801258,1760848241633,-422.0,0.0002923,2]
[391801259,1760848241642,-7816.87686989,0.00029245,2]
[391801260,1760848241652,-422.0,0.00029284,2]
[391801261,1760848241662,-428.99472955,0.00029339,2]
[391801262,1760848241671,-323.29977552,0.00029346,18]
[391801263,1760848241680,-323.29977552,0.00029346,18]
[391801264,1760848241690,-1976.74,0.00029356,3]
[391801265,1760848241699,-988.36,0.00029356,3]
[391801266,1760848241710,-494.18,0.00029356,3]
[391801267,1760848241720,-179.67658215,0.00029463,3]
[391801268,1760848241729,-1002.26363648,0.000295,2]
[391801269,1760848241738,-220.12537603,0.000295,120]
[391801270,1760848241748,-71589.98523032,0.0002956,2]
[391801271,1760848241757,-502.8441623,0.00029573,5]
[391801272,1760848241766,-158.02096261,0.00029573,2]
[391801273,1760848241775,-500.70062364,0.00029573,5]
[391801274,1760848241784,-160.02944324,0.00029573,5]
[391801275,1760848241793,-500.31369166,0.00029573,5]
[391801276,1760848241803,-501.4485199,0.00029573,5]
[391801277,1760848241811,-258.43603289,0.00029573,5]
[391801278,1760848241820,-509.1283416,0.00029573,5]
[391801279,1760848241829,-158.42102128,0.00029573,2]
[391801280,1760848241838,-158.0209682,0.00029573,2]
[391801281,1760848241847,-159.02110369,0.00029573,5]
[391801282,1760848241856,-502.99068564,0.00029573,5]
[391801283,1760848241865,-159.78740477,0.00029573,5]
[391801284,1760848241874,-160.02122795,0.00029573,5]
[391801285,1760848241883,-502.31522138,0.00029573,5]
[391801286,1760848241892,-158.02096261,0.00029573,5]
[391801287,1760848241901,-166.49055955,0.00029573,5]
[391801288,1760848241910,-158.41313798,0.00029573,2]
[391801289,1760848241919,-500.0,0.00029573,5]
[391801290,1760848241929,-503.66579454,0.00029573,5]
[391801291,1760848241938,-505.71606799,0.00029573,5]
[391801292,1760848241947,-500.0,0.00029573,5]
[391801293,1760848241957,-303.93496813,0.00029573,5]
[391801294,1760848241967,-170.02255767,0.00029573,5]
[391801295,1760848241976,-158.42101567,0.00029573,5]
[391801296,1760848241985,-158.42101886,0.00029573,5]
[391801297,1760848241994,-158.42101567,0.00029573,5]
[391801298,1760848242003,-504.90574239,0.00029573,5]
[391801299,1760848242012,-158.42102406,0.00029573,5]
[391801300,1760848242021,-168.02229823,0.00029573,5]
[391801301,1760848242030,-160.02122795,0.00029573,2]
[391801302,1760848242039,-633.03254495,0.00029573,5]
[391801303,1760848242048,-502.19964132,0.00029573,5]
[391801304,1760848242058,-501.96752639,0.00029573,5]
[391801305,1760848242067,-158.42102128,0.00029573,5]
[391801306,1760848242076,-237.79154891,0.00029573,5]
[391801307,1760848242086,-158.42102406,0.00029573,5]
[391801308,1760848242095,-501.75774161,0.00029573,5]
[391801309,1760848242104,-158.02096261,0.00029573,5]
[391801310,1760848242114,-158.02096538,0.00029573,2]
[391801311,1760848242123,-2007.01973674,0.00029616,5]
[391801312,1760848242132,-2007.81500375,0.00029616,5]
[391801313,1760848242142,-2015.72982547,0.00029616,5]
[391801314,1760848242151,-364.88987307,0.00029688,2]
[391801315,1760848242161,-1359.82,0.00029692,2]
[391801316,1760848242170,-14298.97,0.000297,7]
[391801317,1760848242179,-1976.74,0.00029707,3]
[391801318,1760848242188,-503.36310145,0.00029717,5]
[391801319,1760848242197,-500.0,0.00029717,5]
[391801320,1760848242206,-501.68121446,0.00029717,5]
[391801321,1760848242215,-502.47315624,0.00029717,5]
[391801322,1760848242224,-500.0,0.00029717,5]
[391801323,1760848242234,-864.0,0.00029795,30]
[391801324,1760848242243,-330.0,0.000298,2]
[391801325,1760848242252,-172.56784856,0.000299,5]
[391801326,1760848242262,-7816.87686989,0.000299,2]
[391801327,1760848242271,-1000.37979924,0.0003,2]
[391801328,1760848242279,-7291.21988898,0.0003,2]
[391801329,1760848242289,-29097.35715597,0.0003,15]
[391801330,1760848242298,-301.6905193,0.0003,120]
[391801331,1760848242307,-27593.53368535,0.0003,3]
[391801332,1760848242318,-226.4270255,0.0003,120]
[391801333,1760848242328,-1189.0,0.0003,45]
[391801334,1760848242338,-3422.09092866,0.0003,2]
[391801335,1760848242348,-525.53290882,0.0003,2]
[391801336,1760848242357,-785.81490251,0.0003,60]
[391801337,1760848242367,-8048.97527326,0.0003,2]
[391801338,1760848242377,-200.25779965,0.0003,2]
[391801339,1760848242387,-160.0,0.00030056,2]
[391801340,1760848242397,-112858.74109705,0.000301,3]
[391801341,1760848242407,-50799.709238,0.00030117,2]
[391801342,1760848242418,-4321.07692238,0.00030117,2]
[391801343,1760848242429,-367.15813289,0.0003012,7]
[391801344,1760848242439,-316.77836109,0.00030121,5]
[391801345,1760848242460,-506.58475613,0.00030121,5]
[391801346,1760848242474,-153.572685,0.00030127,30]
[391801347,1760848242484,-154.498225,0.00030127,30]
[391801348,1760848242494,-4834.61,0.00030127,3]
[391801349,1760848242505,-285.52235109,0.0003013,2]
[391801350,1760848242515,-500.0,0.00030137,2]
[391801351,1760848242525,-500.0,0.00030137,2]
[391801352,1760848242535,-500.0,0.00030137,2]
[391801353,1760848242545,-500.0,0.00030137,2]
[391801354,1760848242554,-500.0,0.00030137,2]
[391801355,1760848242564,-500.0,0.00030137,2]
[391801356,1760848242573,-500.0,0.00030137,2]
[391801357,1760848242582,-500.0,0.00030137,2]
[391801358,1760848242592,-500.0,0.00030137,2]
[391801359,1760848242603,-500.0,0.00030137,2]
[391801360,1760848242613,-500.0,0.00030137,2]
[391801361,1760848242623,-643.31497642,0.00030137,2]
[391801362,1760848242632,-500.0,0.00030137,2]
[391801363,1760848242642,-500.0,0.00030137,2]
[391801364,1760848242651,-500.0,0.00030137,2]
[391801365,1760848242660,-500.0,0.00030137,2]
[391801366,1760848242671,-500.0,0.00030137,2]
[391801367,1760848242680,-500.0,0.00030137,2]
[391801368,1760848242691,-500.0,0.00030137,2]
[391801369,1760848242701,-160.0,0.00030137,2]
[391801370,1760848242712,-273.98541682,0.0003015,120]
[391801371,1760848242722,-670.52037633,0.0003022,2]
[391801372,1760848242731,-666.0,0.00030249,2]
[391801373,1760848242741,-1000.0,0.00030265,5]
[391801374,1760848242753,-380.0,0.00030288,2]
[391801375,1760848242764,-231.761628,0.00030393,60]
[391801376,1760848242773,-1286.53,0.000304,2]
[391801377,1760848242782,-352.5,0.000304,2]
[391801378,1760848242792,-159.701909,0.00030442,20]
[391801379,1760848242802,-155.263647,0.00030442,20]
[391801380,1760848242812,-158.43728146,0.00030606,5]
[391801381,1760848242824,-155.371,0.00030735,2]
[391801382,1760848242837,-823.0,0.00030774,2]
[391801383,1760848242849,-2081.32,0.00030812,2]
[391801384,1760848242858,-1500.0,0.00030813,5]
[391801386,1760848242868,-500.0,0.00030828,15]
[391801388,1760848242877,-50799.709238,0.00030861,2]
[391801390,1760848242888,-4321.07692238,0.00030861,2]
[391801392,1760848242898,-50799.709238,0.00030862,2]
[391801394,1760848242907,-4321.07692238,0.00030862,2]
[391801395,1760848242920,-501.05338834,0.00030871,5]
[391801396,1760848242929,-501.60837499,0.00030871,5]
[391801397,1760848242939,-501.38556347,0.00030871,5]
[391801398,1760848242948,-500.95109076,0.00030871,5]
[391801399,1760848242957,-501.35614092,0.00030871,5]
[391801400,1760848242966,-500.0,0.00030871,5]
[391801401,1760848242976,-501.30339581,0.00030871,5]
[391801403,1760848242985,-502.0507583,0.00030871,5]
[391801404,1760848242994,-151.0,0.00030879,30]
[391801405,1760848243003,-151.0,0.00030879,30]
[391801406,1760848243013,-151.0,0.00030879,30]
[391801407,1760848243022,-151.0,0.00030879,30]
[391801408,1760848243032,-500.0,0.00030881,30]
[391801410,1760848243041,-199.0,0.00030881,7]
[391801411,1760848243050,-19028.258372,0.00030882,30]
[391801412,1760848243059,-160.0,0.00030882,30]
[391801413,1760848243070,-151.0,0.00030882,30]
[391801414,1760848243079,-155.542732,0.00030882,30]
[391801415,1760848243088,-151.0,0.00030882,30]
[391801416,1760848243098,-312.0354376,0.00030938,2]
[391801417,1760848243107,-101599.418476,0.0003098,2]
[391801418,1760848243117,-8642.15384476,0.0003098,2]
[391801419,1760848243126,-303.52553925,0.0003099,2]
[391801420,1760848243136,-4500.97204589,0.00031,2]
[391801421,1760848243147,-375.0,0.00031,2]
[391801422,1760848243157,-4321.07692238,0.00031067,2]
[391801423,1760848243167,-185.940092,0.0003107,120]
[391801424,1760848243176,-3953.48,0.00031077,3]
[391801425,1760848243185,-500.0,0.00031102,15]
[391801426,1760848243195,-11030.26253319,0.0003112,2]
[391801427,1760848243204,-199.0,0.00031155,8]
[391801428,1760848243214,-165.82,0.0003123,15]
[391801429,1760848243223,-165.82,0.0003133,15]
[391801430,1760848243232,-515.25984071,0.00031361,5]
[391801431,1760848243241,-500.0,0.00031375,15]
[391801432,1760848243251,-14298.97,0.000314,7]
[391801434,1760848243260,-1000.0,0.00031419,5]
[391801435,1760848243269,-199.0,0.00031429,9]
[391801436,1760848243279,-165.82,0.0003143,15]
[391801437,1760848243287,-5930.2,0.00031487,3]
[391801438,1760848243296,-9669.22,0.00031497,3]
[391801439,1760848243304,-165.82911261,0.0003153,15]
[391801440,1760848243313,-250.0,0.0003154,2]
[391801441,1760848243323,-1586.46,0.00031548,2]
[391801442,1760848243333,-397.5,0.000316,2]
[391801443,1760848243342,-500.0,0.00031649,15]
[391801444,1760848243351,-159.701909,0.000317,15]
[391801445,1760848243360,-155.263647,0.000317,15]
[391801446,1760848243370,-2081.32,0.00031771,4]
[391801447,1760848243380,-33077.4989905,0.000319,2]
[391801448,1760848243389,-500.0,0.00031923,15]
[391801449,1760848243399,-4321.07692238,0.00031957,2]
[391801450,1760848243409,-1500.0,0.00031966,5]
[391801452,1760848243419,-26234.29197184,0.00032178,2]
[391801453,1760848243433,-528.17,0.00032197,15]
[391801454,1760848243443,-151.0,0.000322,18]
[391801455,1760848243452,-420.0,0.000322,2]
[391801456,1760848243465,-987.935,0.00032288,2]
[391801457,1760848243475,-501.712446,0.00032338,5]
[391801458,1760848243484,-502.14291505,0.00032338,5]
[391801459,1760848243494,-160.02122795,0.00032338,5]
[391801460,1760848243505,-160.02123643,0.00032338,5]
[391801461,1760848243515,-502.45432216,0.00032338,5]
[391801462,1760848243532,-158.02097097,0.00032338,5]
[391801463,1760848243543,-502.01162706,0.00032338,5]
[391801464,1760848243553,-638.84755237,0.00032338,5]
[391801465,1760848243563,-501.58977297,0.00032338,4]
[391801466,1760848243573,-160.02123643,0.00032338,5]
[391801467,1760848243584,-159.71149922,0.00032338,5]
[391801468,1760848243594,-597.14114543,0.00032338,5]
[391801469,1760848243611,-510.16068276,0.00032338,5]
[391801470,1760848243622,-160.02123643,0.00032338,5]
[391801474,1760848243746,-158.4117426,0.00032338,5]
[391801475,1760848243756,-163.02162884,0.00032338,5]
[391801476,1760848243767,-158.4196259,0.00032338,5]
[391801477,1760848243776,-158.42101567,0.00032338,5]
[391801478,1760848243786,-158.42101845,0.00032338,5]
[391801479,1760848243795,-236.03131122,0.00032338,5]
[391801480,1760848243804,-160.02123643,0.00032338,5]
[391801481,1760848243815,-4321.07692238,0.00032394,2]
[391801482,1760848243825,-500.0,0.00032487,7]
[391801483,1760848243835,-4321.07692238,0.00032494,2]
[391801484,1760848243844,-151.0,0.000325,17]
[391801485,1760848243853,-2015.25160929,0.00032514,5]
[391801486,1760848243862,-500.0,0.00032602,7]
[391801487,1760848243872,-2081.32,0.0003273,6]
[391801488,1760848243881,-1000.0,0.00032774,30]
[391801489,1760848243890,-151.0,0.000328,10]
[391801490,1760848243899,-188.18225035,0.00032877,2]
[391801491,1760848243908,-600.0,0.00032991,2]
[391801492,1760848243918,-1155.26722756,0.00033,2]
[391801493,1760848243928,-151.0,0.000331,14]
[391801494,1760848243939,-14298.97,0.000331,14]
[391801495,1760848243948,-187.340252,0.00033165,2]
[391801496,1760848243958,-4321.07692238,0.0003319,2]
[391801497,1760848243968,-4203.0,0.00033193,2]
[391801498,1760848243978,-1286.53,0.000332,2]
[391801499,1760848243987,-335.1489441,0.00033261,7]
[391801500,1760848243996,-1152.0,0.00033368,2]
[391801501,1760848244005,-200.0,0.000334,120]
[391801502,1760848244015,-151.0,0.000334,20]
[391801503,1760848244024,-1813.1,0.00033404,2]
[391801504,1760848244034,-160.1278382,0.00033479,30]
[391801505,1760848244043,-200.0,0.00033605,120]
[391801506,1760848244052,-1287.60522495,0.00033655,7]
[391801507,1760848244061,-517.91664686,0.00033655,7]
[391801508,1760848244071,-4321.07692238,0.00033679,2]
[391801509,1760848244080,-151.0,0.0003368,30]
[391801510,1760848244089,-151.0,0.0003368,30]
[391801511,1760848244099,-2081.32,0.00033689,120]
[391801512,1760848244108,-500.0,0.00033699,30]
[391801513,1760848244117,-1000.0,0.000337,2]
[391801514,1760848244127,-1000.0,0.000337,2]
[391801515,1760848244136,-1000.0,0.000337,2]
[391801516,1760848244145,-1000.0,0.000337,2]
[391801517,1760848244155,-1000.0,0.000337,2]
[391801518,1760848244163,-1000.0,0.000337,2]
[391801519,1760848244172,-1000.0,0.000337,2]
[391801520,1760848244181,-1000.0,0.000337,2]
[391801521,1760848244191,-1000.0,0.000337,2]
[391801522,1760848244200,-1000.0,0.000337,2]
[391801523,1760848244209,-1000.0,0.000337,2]
[391801524,1760848244218,-1000.0,0.000337,2]
[391801525,1760848244227,-1000.0,0.000337,2]
[391801526,1760848244236,-1000.0,0.000337,2]
[391801527,1760848244245,-1000.0,0.000337,2]
[391801528,1760848244255,-1000.0,0.000337,2]
[391801529,1760848244264,-1000.0,0.000337,2]
[391801530,1760848244273,-1000.0,0.000337,2]
[391801531,1760848244282,-1000.0,0.000337,2]
[391801532,1760848244292,-151.0,0.000337,30]
[391801533,1760848244304,-151.0,0.000337,30]
[391801534,1760848244315,-151.0,0.000337,20]
[391801535,1760848244325,-8642.15384476,0.00033743,2]
[391801536,1760848244335,-151.0,0.00033744,30]
[391801537,1760848244344,-261.086041,0.00033744,30]
[391801538,1760848244355,-533.88981491,0.00033781,7]
[391801539,1760848244364,-553.64373807,0.00033781,7]
[391801540,1760848244374,-574.12855637,0.00033781,7]
[391801541,1760848244386,-595.37131296,0.00033781,7]
[391801542,1760848244398,-617.40005154,0.00033781,7]
[391801543,1760848244407,-640.24385345,0.00033781,7]
[391801544,1760848244417,-663.93287602,0.00033781,7]
[391801545,1760848244427,-688.49839244,0.00033781,7]
[391801546,1760848244437,-713.97283296,0.00033781,7]
[391801547,1760848244447,-740.38982778,0.00033781,7]
[391801548,1760848244458,-767.7842514,0.00033781,7]
[391801549,1760848244468,-796.19226871,0.00033781,7]
[391801550,1760848244478,-250.0,0.00033781,7]
[391801551,1760848244488,-825.65138265,0.00033781,7]
[391801552,1760848244498,-4321.07692238,0.00033833,2]
[391801553,1760848244507,-4321.07692238,0.00033834,2]
[391801554,1760848244517,-4321.07692238,0.00033844,2]
[391801555,1760848244527,-500.0,0.00033853,30]
[391801556,1760848244537,-500.0,0.00033853,30]
[391801557,1760848244546,-500.0,0.00033863,30]
[391801558,1760848244556,-500.0,0.00033863,30]
[391801559,1760848244565,-157.71831543,0.00033863,30]
[391801560,1760848244575,-150.0,0.00033863,2]
[391801561,1760848244584,-150.0,0.00033873,5]
[391801562,1760848244594,-4321.07692238,0.0003389,2]
[391801563,1760848244603,-10000.0,0.000339,120]
[391801564,1760848244612,-2433.741206,0.000339,120]
[391801565,1760848244622,-402.86590842,0.000339,120]
[391801566,1760848244631,-238.071135,0.000339,30]
[391801567,1760848244641,-160.0,0.000339,120]
[391801568,1760848244651,-402.86590842,0.000339,3]
[391801569,1760848244660,-4122.11,0.000339,14]
[391801570,1760848244670,-8642.15384476,0.00033908,2]
[391801571,1760848244680,-3975.7771531,0.00033918,2]
[391801572,1760848244689,-118120.0476729,0.00033918,2]
[391801573,1760848244699,-356.65997671,0.00033956,2]
[391801574,1760848244707,-594.75196854,0.00033956,2]
[391801575,1760848244717,-1070.55354338,0.00033956,2]
[391801576,1760848244727,-1903.20629934,0.00033956,2]
[391801577,1760848244736,-2970.78608287,0.00033956,2]
[391801578,1760848244745,-501.07850429,0.00033973,5]
[391801579,1760848244754,-500.0,0.00033973,2]
[391801580,1760848244765,-501.40609978,0.00033973,5]
[391801581,1760848244775,-501.69087149,0.00033973,5]
[391801582,1760848244785,-500.0,0.00033973,2]
[391801583,1760848244794,-500.75598611,0.00033973,5]
[391801584,1760848244804,-504.20565272,0.00033973,5]
[391801585,1760848244814,-500.75193016,0.00033973,5]
[391801586,1760848244823,-501.70203365,0.00033973,5]
[391801587,1760848244833,-501.73946596,0.00033973,5]
[391801588,1760848244846,-502.91058292,0.00033973,5]
[391801589,1760848244855,-502.66215517,0.00033973,5]
[391801590,1760848244864,-500.17728316,0.00033973,5]
[391801591,1760848244873,-438.58569539,0.00033973,2]
[391801592,1760848244883,-789.45425171,0.00033973,2]
[391801593,1760848244891,-1402.07075103,0.00033973,2]
[391801594,1760848244901,-21903.22506252,0.00033974,7]
[391801595,1760848244912,-10000.0,0.0003398,60]
[391801596,1760848244924,-10000.0,0.0003398,60]
[391801597,1760848244933,-1010.28,0.0003398,60]
[391801598,1760848244943,-5055.5970946,0.0003398,2]
[391801599,1760848244952,-6870.0,0.00033982,60]